Cogmind - Beta 17.1 @@@ ROGUE MODE // 2026.09.15 @ 13:43:00 Player: J1ang-5h1 Result: Destroyed by G-47 Trooper with Particle Gun Performance ------------- Evolutions (0) 0 Regions Visited (1) 200 Robots Destroyed (19) 95 Value Destroyed (375) 375 Prototype IDs (0) 0 Alien Tech Used (0) 0 Bonus (0) 0 TOTAL SCORE: 670 Bonus ------- None Cogmind --------- Core Integrity 0/250 Matter 280/300 Energy 4/100 System Corruption 0% Temperature Warm (179) Movement Core (750) Ox14 Location -10/Materials Parts ------- > --- POWER (1) -------- (None) > --- PROPULSION (2) --- (None) > --- UTILITY (2) ------ High-capacity Storage Unit Seismic Detector > --- WEAPON (2) ------- Medium Laser Medium Laser > --- INVENTORY (20) --- Light Treads Light Treads Heat Sink Large Battery (200) Structural Scanner Sensor Array Signal Interpreter Improved Terrain Scanner Seismic Detector Core Shielding Tractor Beam Medium Laser Beam Cannon Light Assault Rifle Grenade Launcher Peak State ------------ > --- POWER ------------ Light Ion Engine > --- PROPULSION ------- Light Treads Light Treads > --- UTILITY ---------- Small Storage Unit Seismic Detector > --- WEAPON ----------- Medium Laser Assault Rifle > --- INVENTORY -------- Wheel Compact Wheel Heat Sink Structural Scanner Improved Terrain Scanner Tractor Beam Beam Cannon Mining Laser [Rating: 8] Favorites ----------- Power Light Ion Engine Engine Light Ion Engine Propulsion Light Treads Treads Light Treads Wheel Wheel Utility Seismic Detector Device Seismic Detector Storage High-capacity Storage Unit Weapon Assault Rifle Energy Gun Medium Laser Ballistic Gun Assault Rifle Special Weapon Mining Laser Impact Weapon Hammer Build | -11 -10 ------- Run | Yrd Mat Slots Evolved . | . . Power . | . . Propulsion . | . . Utility . | . . Weapon . | . . Parts Attached 15 | 10 5 Power 1 | 1 . Engine 1 | 1 . Core . | . . Reactor . | . . Propulsion 4 | 3 1 Treads 2 | 2 . Leg . | . . Wheel 2 | 1 1 Hover . | . . Flight . | . . Utility 4 | 3 1 Device 2 | 2 . Storage 2 | 1 1 Processor . | . . Hackware . | . . Protection . | . . Artifact . | . . Weapon 6 | 3 3 Energy Gun 3 | 2 1 Energy Cannon . | . . Ballistic Gun 1 | 1 . Ballistic Cannon . | . . Launcher . | . . Special Weapon 1 | . 1 Impact Weapon 1 | . 1 Slashing Weapon . | . . Piercing Weapon . | . . Special Melee Weapon . | . . Unidentified Prototypes . | . . Parts Lost 3 | . 3 Power 1 | . 1 Propulsion 2 | . 2 Utility . | . . Weapon . | . . Highest Loss Streak 2 | . 2 To Critical Strikes . | . . Average Backups 10 | 3 11 Power . | . . Propulsion 1 | 1 2 Utility 5 | . 6 Weapon 3 | 1 3 Tool/Special . | . . Unused Backups 12 | . 12 Power . | . . Propulsion . | . . Utility 8 | . 8 Weapon 4 | . 4 Tool/Special . | . . Average Slot Usage (%) 92 | . 92 Engine 7 | . 7 Treads 10 | . 10 Wheel 15 | . 15 Device 14 | . 14 Storage 14 | . 14 Energy Gun 7 | . 7 Ballistic Gun 13 | . 13 Impact Weapon 6 | . 6 Peak Build Rating 8 | 7 8 Average Rating 6 | 4 7 On Entrance 3 | . 7 Avg Prop Armor Cover (%) 8 | 8 . Naked Turns . | . . Heaviest Build 48 | 13 48 Greatest Support 40 | 40 40 Greatest Overweight (x) 1 | . 1 Average Overweight (x) . | . . Largest Inventory Capacity 20 | 8 20 Average Capacity 14 | 6 15 Most Carried 17 | 5 17 Average Carried 10 | 3 12 Final Capacity 20 | 8 20 Final Carried 15 | 5 15 Class Distribution -------------------- 100% | Mutant Dominant Class ---------------- Mutant | -10/Materials Resources | -11 -10 ----------- Run | Yrd Mat Matter Collected 411 | 321 90 Remotely 108 | 108 . Salvage Created 712 | 144 568 Parts 26 | 9 17 Haulers Intercepted 1 | . 1 Recyclers Shooed 1 | . 1 Parts Field Recycled . | . . Retrieved Matter . | . . Parts Self-Destructed . | . . Prevented . | . . Parts Restored . | . . Kills | -11 -10 ------- Run | Yrd Mat Combat Hostiles Destroyed 10 | . 10 Melee 5 | . 5 Guns 3 | . 3 Classes Destroyed 6 | 2 4 Tunneler 3 | 2 1 Hauler 1 | . 1 Recycler 3 | 1 2 Watcher 2 | . 2 Swarmer 2 | . 2 Grunt 8 | . 8 Best Kill Streak 4 | 3 4 Combat Bots Only 2 | . 2 Max Kills in Single Turn 1 | 1 1 Gunslinging . | . . Exploded . | . . Melee 1 | . 1 Uniques/NPCs Destroyed . | . . Combat | -11 -10 -------- Run | Yrd Mat Hostile Shots Fired 60 | . 60 Missed 16 | . 16 Hits 44 | . 44 Projectile 44 | . 44 AOE 1 | . 1 Critical Strikes 1 | . 1 Damage Taken 613 | . 613 Core 262 | . 262 Absorbed by Shields . | . . Core Remaining (%) 100 | 100 . Volleys Fired 27 | 7 20 Largest 2 | 2 2 Hottest 100 | 70 100 Shots Fired 49 | 14 35 Gun 48 | 14 34 Cannon . | . . Launcher . | . . Special 1 | . 1 Kinetic 17 | 7 10 Thermal 32 | 7 25 Explosive . | . . Electromagnetic . | . . Robot Hit Streak 6 | 5 6 Robot Miss Streak 2 | 1 2 Penetration Max . | . . Secondary Targets . | . . Shots Hit Robots 64 | 10 54 Core Hits 19 | 4 15 Critical Kills 1 | . 1 Critical Parts Destroyed 3 | . 3 Critical Strikes 7 | 2 5 Burn 3 | 2 1 Smash 4 | . 4 Melee Attacks 38 | . 38 Impact 38 | . 38 Slashing . | . . Piercing . | . . Sneak Attacks 4 | . 4 Combat Hostiles . | . . Follow-up Attacks . | . . Damage Inflicted 1355 | 133 1222 Guns 433 | 131 302 Cannons . | . . Explosions . | . . Melee 920 | . 920 Ramming 2 | 2 . Kinetic 155 | 57 98 Thermal 278 | 74 204 Explosive . | . . Electromagnetic . | . . Impact 920 | . 920 Slashing . | . . Piercing . | . . Highest Corruption . | . . Average Corruption . | . . Corruption Purged . | . . Corruption Blocked . | . . Overload Shots . | . . Overflow Damage 174 | . 174 Projectiles . | . . Explosions . | . . Melee 174 | . 174 Knockbacks . | . . Impact . | . . Kinetic . | . . Secondary . | . . Self-Inflicted Damage . | . . Shots . | . . Rammed 1 | 1 . Targets Rammed 1 | 1 . Kicked . | . . Crushed . | . . Highest Temperature 170 | 18 170 Average Temperature 40 | 9 50 Received Heat Transfer 288 | . 288 Siege Activations . | . . Martial Activations . | . . Shielding Activations . | . . Robots Disrupted . | . . Combat Hostiles . | . . Robots Corrupted 4 | . 4 Combat Hostiles 1 | . 1 Parts Fried 6 | . 6 Impact Corruptions 8 | . 8 Robots Melted 1 | . 1 Combat Hostiles 1 | . 1 Parts Melted . | . . Heat Transferred 1036 | 370 666 Parts Sabotaged . | . . Parts Stolen . | . . Parts Stripped . | . . Power Chain Reactions . | . . Alert | -11 -10 ------- Run | Yrd Mat Maximum Alert Level . | . . Low Security (%) 100 | 100 100 Level 1 . | . . Level 2 . | . . Level 3 . | . . Level 4 . | . . Level 5 . | . . High Security . | . . Max Security . | . . Peak Influence 81 | 5 81 Initial . | . . Average 31 | 1 36 Influence Increases 399 | 15 384 Destroy 0b10 Robot/C 200 | . 200 Destroy 0b10 Robot/NC 45 | 15 30 Destroy Leader 26 | . 26 Successful Hack 36 | . 36 Select Force Hacks 30 | . 30 Disable Machine 15 | . 15 Destroy Structure 2 | . 2 Lose Combat Pursuer 45 | . 45 Influence Decreases 342 | 15 327 Time Decay 312 | 15 297 Lost Part 30 | . 30 Squads Dispatched 2 | . 2 Investigation 2 | . 2 Extermination . | . . Reinforcement . | . . Assault . | . . Garrison . | . . Intercept . | . . Searches Triggered . | . . Construction Impeded . | . . Haulers Reinforced . | . . Active Scanning Responses . | . . Cargo Convoy Interrupts . | . . Stealth | -11 -10 --------- Run | Yrd Mat Distress Signals 1 | . 1 Communications Jammed . | . . Distress Signals . | . . Times Spotted 21 | . 21 Peak Tracking Total 8 | . 8 Tactical Retreats 2 | . 2 Traps | -11 -10 ------- Run | Yrd Mat Traps Triggered 1 | . 1 Indirectly . | . . Trap Hack Attempts . | . . Triggered . | . . Disarmed . | . . Reprogrammed . | . . Reused . | . . Traps Extracted . | . . Installed . | . . Triggered . | . . Machines | -11 -10 ---------- Run | Yrd Mat Machines Disabled 1 | . 1 Max in Single Turn 1 | . 1 Machines Repaired . | . . Machines Dismantled . | . . Machines Sabotaged . | . . Overloaded Fab Kills . | . . Hacking | -11 -10 --------- Run | Yrd Mat Machines Accessed 5 | . 5 Terminals 4 | . 4 Fabricators . | . . Repair Stations . | . . Recycling Units 1 | . 1 Scanalyzers . | . . Garrison Access . | . . Total Hacks 19 | . 19 Successful 12 | . 12 Failed 6 | . 6 Catastrophic 1 | . 1 Database Lockouts 1 | . 1 Manual 12 | . 12 Terminals 17 | . 17 Fabricators . | . . Repair Stations . | . . Recycling Units 2 | . 2 Scanalyzers . | . . Garrison Access . | . . Terminal Hacks 5 | . 5 Robot Analysis 2 | . 2 Dispatch Records 1 | . 1 Hauler Manifests 1 | . 1 Zone Layout 1 | . 1 Fabricator Hacks . | . . Repair Station Hacks . | . . Recycling Unit Hacks 1 | . 1 Report Inventory 1 | . 1 Scanalyzer . | . . Garrison Access Hacks . | . . Unauthorized Hacks 6 | . 6 Terminals 5 | . 5 Botnet 2 | . 2 Skim 3 | . 3 Fabricators . | . . Repair Stations . | . . Recycling Units 1 | . 1 Tunnel 1 | . 1 Scanalyzers . | . . Garrison Access . | . . Data Cores Recovered . | . . Used . | . . Hacking Detections 4 | . 4 Full Trace Events . | . . Feedback Events . | . . Feedback Blocked . | . . Robot Schematics Acquired . | . . Robots Built . | . . Authchips . | . . Time . | . . Total Robot Build Rating . | . . Part Schematics Acquired . | . . Parts Built . | . . Authchips . | . . Time . | . . Total Part Build Rating . | . . Part Studies Acquired . | . . Parts Repaired . | . . Time . | . . Parts Recycled . | . . Recycled Matter . | . . Retrieved Matter . | . . Retrieved Components . | . . Parts Scanalyzed . | . . Part Schematics Acquired . | . . Parts Damaged . | . . Bothacking | -11 -10 ------------ Run | Yrd Mat Used RIF Installer . | . . Robots Hacked . | . . Non-combat . | . . Combat . | . . Robot Hacks Applied . | . . Relay Couplers Released . | . . Fabnet Peak Effective % . | . . Robots Rewired . | . . Allies Hacked . | . . Hacks Repelled . | . . Allies | -11 -10 -------- Run | Yrd Mat Total Allies . | . . Largest Group . | . . Highest-Rated Group . | . . Highest-Rated Ally . | . . Total Orders . | . . Ally Attacks . | . . Total Damage . | . . Kills . | . . Allies Corrupted . | . . Allies Melted . | . . Intel | -11 -10 ------- Run | Yrd Mat Active Infowar (turns) 744 | 20 724 Seismic 744 | 20 724 Robot Analysis Total 2 | . 2 Derelict Logs Recovered . | . . Drone Launches . | . . Drone Recoveries . | . . Exploration | -11 -10 ------------- Run | Yrd Mat Turns Passed 838 | 114 724 Spaces Moved 459 | 50 409 Core 8 | 8 . Treads 171 | 40 131 Legs . | . . Wheels 280 | 2 278 Hover . | . . Flight . | . . Fastest Speed 50 | 50 105 Average Speed 124 | 139 122 Slowest Speed 160 | 160 160 Overloaded Moves . | . . Propulsion Burnouts . | . . Robots Hopped . | . . Potential Cave-ins . | . . Cave-ins Triggered . | . . Exploration Rate (%) 30 | 3 58 Regions Visited 1 Branch Regions . Pre-discovered Areas 1 | . 1 Known Exits Taken . | . . Unknown Exits Taken 1 | 1 . Scrap Searched . | . . Spaces Dug 1 | . 1 Terrain Destroyed 1 | . 1 Melee . | . . Projectile 1 | . 1 AOE . | . . Terrain Rammed . | . . Walls Destroyed . | . . Machines Disabled . | . . Actions | -11 -10 --------- Run | Yrd Mat Total 606 | 78 528 Wait 36 | . 36 Move 459 | 50 409 Hop . | . . Pick Up 22 | 9 13 Fast Attach 4 | 4 . Attach 6 | 4 2 Detach 1 | 1 . Swap 8 | 2 6 Drop 5 | 1 4 Fire 27 | 7 20 Melee 38 | . 38 Ram . | . . Kick . | . . Crush . | . . Escape Stasis . | . . Rewire . | . . Trap . | . . Miscellaneous . | . . Route ------- -11/Scrapyard -10/Materials (discovered 4 exits: [*Mat x2] / [*Min] / [*Sub]) History --------- Turn | Location | Event 21 | -11/Scrapyard | Discovered new exit (range 15) 115 | -11/Scrapyard | Entered Materials 133 | -10/Materials | Discovered new exit (range 13) 330 | -10/Materials | Build established: Mutant 423 | -10/Materials | Central database locked down 520 | -10/Materials | Core integrity fell below 50% 561 | -10/Materials | Discovered new exit (range 8) 620 | -10/Materials | Discovered new exit (range 16) 742 | -10/Materials | Discovered new exit (range 16) 814 | -10/Materials | Core integrity fell below 20% 839 | -10/Materials | Destroyed by G-47 Trooper with Particle Gun Last Messages --------------- 00787_ Com. Wheel destroyed. 00802_ Destroyed Aluminum Leg. 00802_ G-34 Mercenary system corrupted by crushing effect. 00805_ G-34 Mercenary suffers critical hit (Smash). 00805_ Destroyed Ion Engine. 00805_ G-34 Mercenary system corrupted by crushing effect. 00805_ G-34 Mercenary misfires. 00811_ Wheel destroyed. 00813_ Dropped Assault Rifle. 00815_ Dropped Hammer. 00816_ Destroyed Heat Sink. 00822_ Destroyed Aluminum Leg. 00823_ G-34 Mercenary misfires. 00824_ G-34 Mercenary heat spikes uncontrollably. 00825_ G-34 Mercenary heat damages core (-5). 00829_ Critical hit (Burn: +37). Map ----- +----------------------------------------------------+ | #??????????????????????????????? | | #??????????????????????????????? | | #??????????????????????????????? | | #?????????? ??????????????????? | | #?????????? ??????????????????? | | #?????????? "?????????????????? | | #?????????? """ !????????? | | ########### [????????? | | [????????? | | """ #??????????? | | """ #??????????? | | """ #??????????? | | #??????????? | | #??????????? | | ########## """ #??????????? | | # # """ #######????? | | # + """ #????? | | %+% # < #????? | | # % ! + #????? | | # ## #????? | | ### """ ## ##################? | | ??# """ ## #????????# #? | | ??# """ ## #????????# #? | | ??# ## ########## #? | | ??########### % +%*/ #? | | ????????????############%@[ #? | | ???????????????????????#g######?? | | ???????????????????????#g#??????? | | ???????????????????????# #??????? | | ???????????????????????# #??????? | | ???????????????????????# #??????? | | ???????????????????????# #??????? | | ???????????????????????# ??????? | | ???????????????????????# ??????? | | ???????????????????????? ??????? | | ???????????????????????? ??????? | | ???????????????????????? ??????? | | ???????????????????????? ??????? | | ???????????????????????? ??????? | | ???????????????????????? ??????? | | ???????????????????????? ??????? | | ????????????????????????????????? | | ????????????????????????????????? | | ????????????????????????????????? | | ????????????????????????????????? | | ????????????????????????????????? | | ????????????????????????????????? | | ????????????????????????????????? | | ????????????????????????????????? | | ????????????????????????????????? | +----------------------------------------------------+ Best States ------------- Heat Dissipation 25 Energy Generation 10 Energy Capacity 125 Matter Stores 300 Matter Capacity 300 Sight Range 16 Terrain Scan Density 10 Evasion (%) 50 Recoil Reduction 2 Item Schematics ----------------- None Robot Schematics ------------------ None Fabricated ------------ Nothing Repaired ---------- Nothing Studied --------- None Alien Tech Used ----------------- None Achievements -------------- None Challenges ------------ None Game ------ Seed ContainmentStormStorage Manual? 0 Play Time 00:12:07 Cumulative 444.9 hours Start 2026.09.15 @ 13:31:53 End 2026.09.15 @ 13:43:00 Sessions 1 Manual Loads 0 Difficulty Rogue Special Mode None Game No. 319 Rogue 309 Adventurer 0 Explorer 10 Win Type - Total 5 Types 5/0/0/0/0/0/0/0/0/0 Lore% 83 Gallery% 67 Achievement% 48 Wizard Run 0 Options --------- Layout 2 ASCII 0 Keyboard 0 Movement Arrows Keybinds 1 Fullscreen 1 Font 24/Smallcaps Map View 50x44 Zoom Use 0% Tactical HUD 1 Map Filters NONE Filters NONE Steam 1 RUN: cbd661ef-0808-4fff-be3e-64cc5865914d